Cogmind - Beta 16 @@@ ROGUE MODE // 2026.01.18 @ 20:46:31 Player: K0T Result: Destroyed by G-47 Trooper with Particle Gun Performance ------------- Evolutions (2) 1000 Regions Visited (5) 1000 Robots Destroyed (126) 630 Value Destroyed (3294) 3294 Prototype IDs (2) 40 Alien Tech Used (0) 0 Bonus (938) 938 TOTAL SCORE: 6902 Bonus ------- High Alert Combat Kills 466 Follower Combat Kills 306 Entered Garrisons 200 Friendly Fire -34 Cogmind --------- Core Integrity 0/550 Matter 290/300 Energy 143/160 System Corruption 4% Temperature Cool (9) Movement Treading (160) Location -8/Garrison Parts ------- > --- POWER (1) -------- Light Nuclear Core > --- PROPULSION (3) --- Light Treads Light Treads Improved Treads > --- UTILITY (5) ------ Advanced Heat Sink Large Storage Unit Target Analyzer Hacking Suite Hacking Suite > --- WEAPON (2) ------- Particle Gun Coil Gun > --- INVENTORY (15) --- Heat Sink Improved Heat Sink Huge Storage Unit Improved Particle Charger ECM Suite Improved Hardlight Generator Force Field Hacking Suite Recalibrator Particle Gun Rocket Launcher Remote Datajack Makeshift Hammer Peak State ------------ > --- POWER ------------ Light Nuclear Core > --- PROPULSION ------- Light Treads Light Treads Improved Treads > --- UTILITY ---------- Advanced Heat Sink Large Storage Unit Target Analyzer Hacking Suite Hacking Suite > --- WEAPON ----------- Particle Gun Coil Gun > --- INVENTORY -------- Heat Sink Improved Heat Sink Huge Storage Unit Improved Particle Charger ECM Suite Improved Hardlight Generator Force Field Hacking Suite Recalibrator Particle Gun Rocket Launcher Remote Datajack Makeshift Hammer [Rating: 33] Favorites ----------- Power Ion Engine Engine Ion Engine Power Core Light Nuclear Core Propulsion Light Treads Treads Light Treads Utility Hacking Suite Device Thief Drone Bay Storage Large Storage Unit Processor Targeting Computer Hackware Hacking Suite Weapon Medium Laser Energy Gun Medium Laser Ballistic Gun Heavy Assault Rifle Ballistic Cannon Improved Light Cannon Impact Weapon Makeshift Hammer Build | -11 -10 -10 -9 -8 -8 ------- Run | Yrd Mat Min Mat Mat Gar Slots Evolved 4 | . . . 2 2 . Power . | . . . . . . Propulsion 1 | . . . . 1 . Utility 3 | . . . 2 1 . Weapon . | . . . . . . Parts Attached 69 | 6 5 2 21 21 14 Power 11 | 1 1 . 3 3 3 Engine 6 | 1 1 . 1 3 . Core 5 | . . . 2 . 3 Reactor . | . . . . . . Propulsion 25 | 2 . 1 8 10 4 Treads 25 | 2 . 1 8 10 4 Leg . | . . . . . . Wheel . | . . . . . . Hover . | . . . . . . Flight . | . . . . . . Utility 15 | 1 3 1 5 3 2 Device 7 | . 1 1 2 2 1 Storage 2 | 1 1 . . . . Processor 3 | . 1 . . 1 1 Hackware 3 | . . . 3 . . Protection . | . . . . . . Artifact . | . . . . . . Weapon 18 | 2 1 . 5 5 5 Energy Gun 9 | 1 1 . 2 3 2 Energy Cannon . | . . . . . . Ballistic Gun 7 | 1 . . 3 1 2 Ballistic Cannon 1 | . . . . 1 . Launcher . | . . . . . . Special Weapon . | . . . . . . Impact Weapon 1 | . . . . . 1 Slashing Weapon . | . . . . . . Piercing Weapon . | . . . . . . Special Melee Weapon . | . . . . . . Unidentified Prototypes 2 | . . 1 1 . . Parts Lost 24 | . 1 2 6 7 8 Power 3 | . . . 1 1 1 Propulsion 7 | . . 1 1 2 3 Utility 5 | . . 1 2 1 1 Weapon 9 | . 1 . 2 3 3 Highest Loss Streak 7 | . 1 2 3 3 7 To Critical Strikes . | . . . . . . Average Backups 11 | . 9 14 14 12 11 Power . | . . . . . . Propulsion 3 | . 4 4 4 4 . Utility 4 | . 2 6 4 4 6 Weapon 3 | . 2 3 5 4 3 Tool/Special . | . . . . . . Unused Backups 11 | . . 1 . . 10 Power . | . . . . . . Propulsion . | . . . . . . Utility 8 | . . 1 . . 7 Weapon 2 | . . . . . 2 Tool/Special 1 | . . . . . 1 Average Slot Usage (%) 98 | . 99 95 98 97 99 Engine 9 | . 14 14 10 6 . Core 1 | . . . . 2 7 Treads 26 | . 28 27 21 26 27 Device 7 | . 2 5 15 7 7 Storage 11 | . 14 14 11 9 9 Processor 7 | . 11 5 . 8 9 Hackware 10 | . . . 16 18 18 Energy Gun 13 | . 17 28 11 9 8 Ballistic Gun 7 | . 10 . 10 6 1 Peak Build Rating 33 | 6 9 15 24 27 33 Average Rating 17 | 4 7 10 23 21 29 On Entrance 13 | . 6 9 15 24 25 Avg Prop Armor Cover (%) . | . . . . . . Naked Turns . | . . . . . . Heaviest Build 40 | 13 33 33 40 40 37 Greatest Support 63 | 40 40 40 40 60 63 Greatest Overweight (x) 1 | . . 1 1 1 . Average Overweight (x) . | . . . . . . Largest Inventory Capacity 15 | 8 15 15 15 15 15 Average Capacity 14 | 6 14 15 15 15 15 Most Carried 15 | 3 15 15 15 15 15 Average Carried 11 | . 9 14 14 12 11 Final Capacity 15 | 8 15 15 15 15 15 Final Carried 15 | . 14 15 13 15 13 Class Distribution -------------------- 44% | Mutant 39% | Scavenger-Mutant 16% | Hacker-Mutant Dominant Class ---------------- Mutant | -10/Materials Mutant | -10/Mines Scavenger-Mutant | -9/Materials Scavenger-Mutant | -8/Materials Scavenger-Mutant | -8/Garrison Resources | -11 -10 -10 -9 -8 -8 ----------- Run | Yrd Mat Min Mat Mat Gar Matter Collected 1878 | 187 164 30 526 603 368 Remotely . | . . . . . . Salvage Created 4299 | . 586 102 1551 1425 635 Parts 257 | . 43 4 93 86 31 Haulers Intercepted 9 | . 2 . 4 3 . Recyclers Shooed 2 | . . . 2 . . Parts Field Recycled . | . . . . . . Retrieved Matter . | . . . . . . Parts Self-Destructed . | . . . . . . Prevented . | . . . . . . Parts Restored . | . . . . . . Kills | -11 -10 -10 -9 -8 -8 ------- Run | Yrd Mat Min Mat Mat Gar Combat Hostiles Destroyed 97 | . 12 3 28 39 15 Guns 90 | . 12 3 28 33 14 Cannons 5 | . . . . 5 . AOE 1 | . . . . 1 . Classes Destroyed 15 | . 8 1 1 3 2 Worker 1 | . 1 . . . . Hauler 9 | . 2 . 4 3 . Recycler 6 | . 1 . 4 1 . Mechanic 2 | . 1 . 1 . . Operator 7 | . 4 . 2 1 . Watcher 5 | . 2 . 3 . . Swarmer 35 | . 7 . 12 16 . Grunt 38 | . 5 2 11 10 10 Brawler 2 | . . . . 2 . Duelist 1 | . . . . 1 . Protector 1 | . . . . 1 . Sentry 15 | . . . 5 9 1 Hunter 1 | . . . . . 1 Programmer 3 | . . . . . 3 Assembled 1 | . . 1 . . . Best Kill Streak 6 | . 4 2 6 5 4 Combat Bots Only 6 | . 3 2 6 5 4 Max Kills in Single Turn 2 | . 2 1 1 2 2 Gunslinging 1 | . 1 . . 1 1 Exploded 1 | . . . . 1 . Melee . | . . . . . . Uniques/NPCs Destroyed . | . . . . . . Combat | -11 -10 -10 -9 -8 -8 -------- Run | Yrd Mat Min Mat Mat Gar Hostile Shots Fired 585 | . 90 13 164 179 139 Missed 146 | . 32 4 35 39 36 Hits 439 | . 58 9 129 140 103 Melee 3 | . . . . 3 . Projectile 436 | . 58 9 129 137 103 Critical Strikes 10 | . . . . 5 5 Part Disruptions 1 | . . 1 . . . Damage Taken 5467 | . 474 103 1416 1896 1578 Core 956 | . 93 13 300 324 226 Absorbed by Shields . | . . . . . . Core Remaining (%) 60 | 100 . 57 25 . . Volleys Fired 369 | . 81 11 110 109 58 Largest 2 | . 2 2 2 2 2 Hottest 100 | . 100 100 73 98 98 Shots Fired 699 | . 153 22 210 215 99 Gun 636 | . 153 22 210 184 67 Cannon 63 | . . . . 31 32 Launcher . | . . . . . . Special . | . . . . . . Kinetic 333 | . 56 . 109 104 64 Thermal 361 | . 97 22 101 106 35 Explosive . | . . . . . . Electromagnetic 5 | . . . . 5 . Robot Hit Streak 11 | . 11 7 11 9 8 Robot Miss Streak 8 | . 6 8 4 8 2 Penetration Max . | . . . . . . Secondary Targets 19 | . 3 1 9 4 2 Max Gunslinging Chain 1 | . 1 1 1 1 1 Shots Hit Robots 446 | . 92 8 136 147 63 Core Hits 227 | . 44 7 66 79 31 Critical Kills . | . . . . . . Critical Parts Destroyed 2 | . . . 1 . 1 Critical Strikes 29 | . 5 1 8 10 5 Burn 24 | . 5 1 7 9 2 Destroy 2 | . . . 1 . 1 Blast 2 | . . . . 1 1 Smash 1 | . . . . . 1 Melee Attacks 26 | . . . . . 26 Impact 26 | . . . . . 26 Slashing . | . . . . . . Piercing . | . . . . . . Sneak Attacks 1 | . . . . . 1 Combat Hostiles . | . . . . . . Follow-up Attacks . | . . . . . . Damage Inflicted 7083 | . 1053 104 1974 2709 1243 Guns 6234 | . 1053 104 1974 2300 803 Cannons 676 | . . . . 320 356 Explosions 89 | . . . . 89 . Melee 84 | . . . . . 84 Ramming . | . . . . . . Kinetic 3610 | . 290 . 1036 1536 748 Thermal 3330 | . 763 104 938 1114 411 Explosive . | . . . . . . Electromagnetic 59 | . . . . 59 . Impact 84 | . . . . . 84 Slashing . | . . . . . . Piercing . | . . . . . . Highest Corruption 4 | . . . 3 . 4 Average Corruption 3 | . . . 2 . 3 Corruption Purged . | . . . . . . Corruption Blocked . | . . . . . . Effects 45 | . . . 23 . 22 Message Errors 8 | . . . 4 . 4 Matter Fused 5 | . . . 2 . 3 Heat Flow Errors 8 | . . . 6 . 2 Energy Discharges 7 | . . . 2 . 5 Parts Rejected 1 | . . . 1 . . Data Loss (minor) 6 | . . . 2 . 4 Data Loss (major) 4 | . . . 3 . 1 Alerts 4 | . . . 2 . 2 Weapon Failures 2 | . . . 1 . 1 Overload Shots . | . . . . . . Overflow Damage 23 | . . . . 16 7 Projectiles 23 | . . . . 16 7 Explosions . | . . . . . . Melee . | . . . . . . Knockbacks 4 | . . . . 1 3 Impact . | . . . . . . Kinetic 4 | . . . . 1 3 Secondary . | . . . . . . Self-Inflicted Damage . | . . . . . . Shots . | . . . . . . Rammed . | . . . . . . Targets Rammed . | . . . . . . Kicked . | . . . . . . Crushed . | . . . . . . Highest Temperature 435 | . 234 257 256 351 435 Average Temperature 63 | . 49 98 47 67 94 Received Heat Transfer 2005 | . 48 130 405 693 729 Effects 9 | . . . 4 2 3 Shutdowns 1 | . . . . . 1 Energy Bleed 1 | . . . . 1 . Interference 6 | . . . 4 . 2 Damage (minor) 1 | . . . . 1 . Siege Activations . | . . . . . . Martial Activations . | . . . . . . Shielding Activations . | . . . . . . Robots Disrupted . | . . . . . . Combat Hostiles . | . . . . . . Robots Corrupted 1 | . . . . . 1 Combat Hostiles 1 | . . . . . 1 Parts Fried . | . . . . . . Impact Corruptions 1 | . . . . . 1 Robots Melted . | . . . . . . Combat Hostiles . | . . . . . . Parts Melted 24 | . 6 3 6 4 5 Heat Transferred 10634 | . 2590 370 3219 3456 999 Parts Sabotaged . | . . . . . . Parts Stolen . | . . . . . . Parts Stripped . | . . . . . . Power Chain Reactions 1 | . . . . 1 . Alert | -11 -10 -10 -9 -8 -8 ------- Run | Yrd Mat Min Mat Mat Gar Maximum Alert Level 3 | . . . 2 3 3 Low Security (%) 45 | 100 100 100 20 . . Level 1 16 | . . . 36 36 . Level 2 28 | . . . 43 60 41 Level 3 9 | . . . . 3 58 Level 4 . | . . . . . . Level 5 . | . . . . . . High Security . | . . . . . . Max Security . | . . . . . . Peak Influence 790 | . 85 40 580 711 790 Initial 451 | . . 12 . 242 451 Average 280 | . 22 3 349 431 669 Influence Increases 3192 | . 425 50 1237 1061 419 Destroy 0b10 Robot/C 2140 | . 240 40 800 760 300 Destroy 0b10 Robot/NC 160 | . 55 . 75 30 . Destroy Leader 440 | . 68 10 186 166 10 Allied During Kill 104 | . . . 104 . . Successful Hack 99 | . 47 . 25 17 10 Disable Machine 15 | . . . 15 . . Destroy Structure 54 | . . . 2 13 39 Lose Combat Pursuer 180 | . 15 . 30 75 60 Influence Decreases 2402 | . 394 81 663 940 324 Entered New Map 595 | . . 19 . 332 244 Time Decay 1527 | . 384 52 553 538 . Lost Part 230 | . 10 10 60 70 80 Lost Ally 50 | . . . 50 . . Squads Dispatched 13 | . 4 1 3 5 . Investigation 2 | . 1 . 1 . . Extermination . | . . . . . . Reinforcement 5 | . 3 . 1 1 . Assault 3 | . . 1 1 1 . Garrison 3 | . . . . 3 . Intercept . | . . . . . . Searches Triggered . | . . . . . . Construction Impeded . | . . . . . . Haulers Reinforced . | . . . . . . Active Scanning Responses . | . . . . . . Cargo Convoy Interrupts . | . . . . . . Stealth | -11 -10 -10 -9 -8 -8 --------- Run | Yrd Mat Min Mat Mat Gar Distress Signals 8 | . 2 1 2 3 . Communications Jammed . | . . . . . . Distress Signals . | . . . . . . Times Spotted 171 | . 41 4 55 53 18 Peak Tracking Total 11 | . 4 11 5 6 6 Tactical Retreats 13 | . 1 . 2 7 3 ECM-based Alert Blocks 2 | . . . . 2 . Traps | -11 -10 -10 -9 -8 -8 ------- Run | Yrd Mat Min Mat Mat Gar Traps Triggered 4 | . . . 4 . . Indirectly . | . . . . . . Trap Hack Attempts . | . . . . . . Triggered . | . . . . . . Disarmed . | . . . . . . Reprogrammed . | . . . . . . Reused . | . . . . . . Traps Extracted . | . . . . . . Installed . | . . . . . . Triggered . | . . . . . . Machines | -11 -10 -10 -9 -8 -8 ---------- Run | Yrd Mat Min Mat Mat Gar Machines Disabled 2 | . . . 1 . 1 Max in Single Turn 1 | . . . . . 1 Machines Repaired . | . . . . . . Machines Dismantled . | . . . . . . Machines Sabotaged . | . . . . . . Overloaded Fab Kills . | . . . . . . Hacking | -11 -10 -10 -9 -8 -8 --------- Run | Yrd Mat Min Mat Mat Gar Machines Accessed 25 | . 7 1 10 6 1 Terminals 20 | . 5 . 9 5 1 Fabricators . | . . . . . . Repair Stations . | . . . . . . Recycling Units 3 | . 2 . 1 . . Scanalyzers . | . . . . . . Garrison Access 1 | . . . . 1 . Total Hacks 89 | . 27 1 39 19 3 Successful 58 | . 20 1 22 14 1 Failed 29 | . 7 . 16 4 2 Catastrophic 1 | . . . 1 . . Database Lockouts 2 | . . . 1 1 . Manual 84 | . 27 . 38 19 . Terminals 77 | . 18 . 38 18 3 Fabricators . | . . . . . . Repair Stations . | . . . . . . Recycling Units 10 | . 9 . 1 . . Scanalyzers . | . . . . . . Garrison Access 1 | . . . . 1 . Terminal Hacks 9 | . 1 1 3 3 1 Robot Analysis 6 | . 1 . 3 2 . Open Door 1 | . . 1 . . . Terminal Index 1 | . . . . 1 . Garrison Registry 1 | . . . . . 1 Fabricator Hacks . | . . . . . . Repair Station Hacks . | . . . . . . Recycling Unit Hacks 1 | . . . 1 . . Retrieve Components 1 | . . . 1 . . Scanalyzer . | . . . . . . Garrison Access Hacks 1 | . . . . 1 . Unlock Access 1 | . . . . 1 . Unauthorized Hacks 47 | . 19 . 18 10 . Terminals 40 | . 12 . 18 10 . Assimilate 3 | . 1 . 2 . . Botnet 16 | . 4 . 7 5 . Disrupt 1 | . 1 . . . . Operators 2 | . 1 . 1 . . Skim 18 | . 5 . 8 5 . Fabricators . | . . . . . . Repair Stations . | . . . . . . Recycling Units 7 | . 7 . . . . Monitor 2 | . 2 . . . . Reject 2 | . 2 . . . . Recyclers 1 | . 1 . . . . Mask 2 | . 2 . . . . Scanalyzers . | . . . . . . Garrison Access . | . . . . . . Data Cores Recovered 1 | . . . 1 . . Used . | . . . . . . Hacking Detections 19 | . 6 . 8 4 1 Full Trace Events 1 | . 1 . . . . Feedback Events . | . . . . . . Feedback Blocked . | . . . . . . Robot Schematics Acquired . | . . . . . . Robots Built . | . . . . . . Authchips . | . . . . . . Time . | . . . . . . Total Robot Build Rating . | . . . . . . Part Schematics Acquired . | . . . . . . Parts Built . | . . . . . . Authchips . | . . . . . . Time . | . . . . . . Total Part Build Rating . | . . . . . . Part Studies Acquired . | . . . . . . Parts Repaired . | . . . . . . Time . | . . . . . . Parts Recycled . | . . . . . . Recycled Matter . | . . . . . . Retrieved Matter . | . . . . . . Retrieved Components 9 | . . . 9 . . Parts Scanalyzed . | . . . . . . Part Schematics Acquired . | . . . . . . Parts Damaged . | . . . . . . Bothacking | -11 -10 -10 -9 -8 -8 ------------ Run | Yrd Mat Min Mat Mat Gar Used RIF Installer . | . . . . . . Robots Hacked . | . . . . . . Non-combat . | . . . . . . Combat . | . . . . . . Robot Hacks Applied . | . . . . . . Relay Couplers Released . | . . . . . . Fabnet Peak Effective % . | . . . . . . Robots Rewired . | . . . . . . Allies Hacked . | . . . . . . Hacks Repelled . | . . . . . . Allies | -11 -10 -10 -9 -8 -8 -------- Run | Yrd Mat Min Mat Mat Gar Total Allies 5 | . . 4 1 . . Largest Group 4 | . . 4 4 . . Highest-Rated Group 71 | . . 71 71 . . Highest-Rated Ally 31 | . . 31 31 . . Total Orders 4 | . . 4 . . . EXPLORE 1 | . . 1 . . . RETURN 3 | . . 3 . . . Ally Attacks 63 | . . . 63 . . Total Damage 624 | . . . 624 . . Kills 13 | . . . 13 . . Allies Corrupted 1 | . . . 1 . . Allies Melted . | . . . . . . Intel | -11 -10 -10 -9 -8 -8 ------- Run | Yrd Mat Min Mat Mat Gar Active Infowar (turns) 718 | . . . . 718 . ECM 718 | . . . . 718 . Robot Analysis Total 6 | . 1 . 3 2 . Derelict Logs Recovered 1 | . . 1 . . . Drone Launches 3 | . . 3 . . . Drone Recoveries 3 | . . 3 . . . Exploration | -11 -10 -10 -9 -8 -8 ------------- Run | Yrd Mat Min Mat Mat Gar Turns Passed 7486 | 69 2383 572 1814 1523 1125 Spaces Moved 3615 | 41 1165 314 862 680 553 Core 7 | 7 . . . . . Treads 3608 | 34 1165 314 862 680 553 Legs . | . . . . . . Wheels . | . . . . . . Hover . | . . . . . . Flight . | . . . . . . Fastest Speed 50 | 50 160 160 160 160 160 Average Speed 160 | 141 160 161 160 160 160 Slowest Speed 240 | 160 160 240 240 240 163 Overloaded Moves . | . . . . . . Propulsion Burnouts . | . . . . . . Robots Hopped . | . . . . . . Potential Cave-ins . | . . . . . . Cave-ins Triggered . | . . . . . . Exploration Rate (%) 62 | 3 97 97 79 49 52 Regions Visited 5 Branch Regions 1 Pre-discovered Areas 5 | . . 1 3 1 . Known Exits Taken 2 | . . . 1 1 . Unknown Exits Taken 3 | 1 1 1 . . . Scrap Searched 3 | . . 3 . . . Spaces Dug 9 | . . . . . 9 Terrain Destroyed 17 | . . . . 8 9 Melee 9 | . . . . . 9 Projectile . | . . . . . . AOE 8 | . . . . 8 . Terrain Rammed . | . . . . . . Walls Destroyed . | . . . . . . Machines Disabled . | . . . . . . Actions | -11 -10 -10 -9 -8 -8 --------- Run | Yrd Mat Min Mat Mat Gar Total 4610 | 52 1543 357 1090 898 670 Wait 426 | . 272 23 71 56 4 Move 3611 | 40 1164 313 861 680 553 Hop . | . . . . . . Pick Up 70 | 6 18 5 14 18 9 Fast Attach 5 | . . . 2 1 2 Attach 44 | 6 4 3 13 10 8 Detach 2 | . 1 . . 1 . Swap 23 | . 1 . 7 11 4 Drop 33 | . 2 2 12 12 5 Fire 369 | . 81 11 110 109 58 Melee 26 | . . . . . 26 Ram . | . . . . . . Kick . | . . . . . . Crush . | . . . . . . Escape Stasis . | . . . . . . Rewire 1 | . . . . . 1 Trap . | . . . . . . Miscellaneous . | . . . . . . Route ------- -11/Scrapyard -10/Materials (discovered 5 exits: *Mat x3 / *Min / [*Sub]) -10/Mines (discovered 3 exits: *Mat x2 / [*Exi]) -9/Materials (discovered 7 exits: *Mat x3 / *Min x2 / *Sto x2) -8/Materials (discovered 4 exits: *Fac x3 / Gar) -8/Garrison (discovered 3 exits: [*Mat x3]) History --------- Turn | Location | Event 7 | -11/Scrapyard | Discovered new exit (range 14) 70 | -11/Scrapyard | Entered Materials 166 | -10/Materials | Discovered new exit (range 12) 317 | -10/Materials | Build established: Mutant 495 | -10/Materials | Discovered new exit (range 16) 652 | -10/Materials | Discovered new exit (range 8) 1218 | -10/Materials | Discovered new exit (range 4) 1962 | -10/Materials | Discovered new exit (range 12) 2453 | -10/Materials | Entered Mines 2504 | -10/Mines | A weapon hastily lodged in a ceiling crevice suddenly fell to the ground 2557 | -10/Mines | Discovered new exit (range 13) 2569 | -10/Mines | Assembled infested the area 2795 | -10/Mines | Found the Drone Emporium 2812 | -10/Mines | Found Prototype Device 2813 | -10/Mines | Identified Thief Drone Bay 2892 | -10/Mines | Discovered new exit (range 34) 2906 | -10/Mines | Discovered new exit (range 29) 2942 | -10/Mines | Assisted by bots powering up and referring to "LRC-V3" 2981 | -10/Mines | Received a Rocket Launcher from a helpful Derelict 3005 | -10/Mines | Met a Derelict testing a Signal Generator 3025 | -10/Mines | Entered Materials 3025 | -9/Materials | Accompanied by 4 allies 3025 | -9/Materials | Evolved 2 slots: Utility x2 3385 | -9/Materials | Build established: Hacker-Mutant 3416 | -9/Materials | Discovered new exit (range 16) 3524 | -9/Materials | Discovered new exit (range 11) 3689 | -9/Materials | Discovered new exit (range 15) 3824 | -9/Materials | Discovered new exit (range 16) 4177 | -9/Materials | Core integrity fell below 50% 4229 | -9/Materials | Discovered new exit (range 14) 4231 | -9/Materials | Build established: Scavenger-Mutant 4322 | -9/Materials | Learned location of Storage (-9) 4345 | -9/Materials | Learned 4 Recycling zone layouts 4360 | -9/Materials | Learned Storage trap positions 4387 | -9/Materials | Identified exit to Mines 4425 | -9/Materials | Identified exit to Materials 4425 | -9/Materials | Identified exit to Storage 4625 | -9/Materials | First assault squad dispatched 4765 | -9/Materials | Lost 3 parts (1p1n1w) 4803 | -9/Materials | Central database locked down 4839 | -9/Materials | Entered another Materials area 4839 | -8/Materials | Evolved 2 slots: Propulsion x1, Utility x1 5408 | -8/Materials | Discovered new exit (range 11) 5639 | -8/Materials | First assault squad dispatched 5899 | -8/Materials | Lost 3 parts (3w) 5981 | -8/Materials | Build established: Hacker-Mutant 6051 | -8/Materials | Garrison activated, responded to threat 6133 | -8/Materials | Discovered new exit (range 5) 6163 | -8/Materials | Central database locked down 6169 | -8/Materials | Core integrity fell below 50% 6208 | -8/Materials | Learned Storage terminal intel 6272 | -8/Materials | Learned location of Lower Caves (-7) 6291 | -8/Materials | Learned location of 1 exit from Extension 6299 | -8/Materials | Identified exit to Factory 6362 | -8/Materials | Identified exit to Garrison 6362 | -8/Materials | Entered Garrison 6563 | -8/Garrison | Triggered checkpoint 6611 | -8/Garrison | Triggered checkpoint 6614 | -8/Garrison | Build established: Scavenger-Mutant 6620 | -8/Garrison | Core integrity fell below 20% 6682 | -8/Garrison | Lost 7 parts (1p3n1u2w) 6737 | -8/Garrison | Discovered new exit (range 10) 6816 | -8/Garrison | Triggered checkpoint 7229 | -8/Garrison | Discovered new exit (range 23) 7229 | -8/Garrison | Discovered new exit (range 68) 7229 | -8/Garrison | Discovered new exit (range 40) 7487 | -8/Garrison | Destroyed by G-47 Trooper with Particle Gun Last Messages --------------- 07238_ System corrupted: Heat flow error (+147). 07268_ System corrupted: Component data lost. 07284_ Sneak attack on Y-45 Defender. 07284_ Y-45 Defender suffers critical hit (Smash). 07284_ Destroyed Lgt. Armor Plating. 07284_ Y-45 Defender system corrupted by crushing effect. 07285_ Y-45 Defender system terminally corrupted. 07289_ Acquired Coil Gun. 07294_ Acquired Imp. Particle Charger. 07299_ Acquired Imp. Hardlight Generator. 07302_ Acquired Force Field. 07306_ System corrupted: Substantial component data lost. 07348_ System corrupted: Energy discharge (-54). 07429_ EN34RDTV>ARWD5AALQDRMRXFTI3LVFQB40MG 07461_ System corrupted: IFF burst signal emitted. Map ----- +----------------------------------------------------+ | | | ??????????????????????????????????????? | | ??????????????????????????????????????? | | ??????????????????????????????????????? | | ???????????????????????????????????#### | | ???????????????????????????????????# | | ???????????????????????????#######?# | | ???????????????????????????#"""""#?# | | ???????????????????????????#" "### | | ???????????????????????????#" + | | ???????????????????????????#" ## | | ?????????#####?????????????#"""""### | | ?????????# ############??#######?# | | ?????????# + #??????????# | | ?????????# ########## #??????????## | | ???????### #???????##+##??#######?# | | ???????# # #???????# #??#"""""#?# | | ???#####+# #??######"""##### #### | | ???#"""" # #??# ^ +^ | | ???#" + #??#^ +^ | | ???#"""" # #??#^ ####+#########+"#### | | ???#####+# g#??#^^#??# #???????# #### | | ???????# # g#### ^####+#########"+##! | | ???????### =## | | ?????????# * ##+# | | ?????????# @ !== | | | ?????????####################### ##+# | | ???????????????????????????????# [## | | ???????????????????????????????# ##! | | ???????????????????????????????# #### | | ???????????????????????????????# #??? | | ???????????????????????????????# #??? | | ???????????????????????????????# #??? | | ???????????????????????????????# #??? | | ???????????????????????????????# #### | | ???????????????????????????????# + | | ???????????????????????????????# + | | ???????????????????????????????# ### | | ???????????????????????????????# #?# | | ???????????????????????????????# #?# | | ???????????????????????????????# #?# | | ???????????????????????????????# #?# | | ???????????????????????????????# #?# | | ???????????????????????????????# ###+ | | ??????????????????????????????## ^ | | ??????????????????????????????#" ^ | | ??????????????????????????????## ^ | | ???????????????????????????????##"####+ | | ????????????????????????????????###??# | | ?????????????????????????????????????# | +----------------------------------------------------+ Best States ------------- Heat Dissipation 50 Energy Generation 15 Energy Capacity 280 Matter Stores 300 Matter Capacity 300 Sight Range 16 Terrain Scan Density 10 ECM Strength 1 Evasion (%) 40 Targeting Accuracy 5 Target Analysis 5 Recoil Reduction 3 Particle Charging 15 Offensive Hacking 20 Item Schematics ----------------- None Robot Schematics ------------------ None Fabricated ------------ Nothing Repaired ---------- Nothing Studied --------- None Alien Tech Used ----------------- None Achievements -------------- Myspace Challenges ------------ None Game ------ Seed AbsorptionResetGravjet Manual? 0 Play Time 00:58:13 Cumulative 149.8 hours Start 2026.01.18 @ 19:48:39 End 2026.01.18 @ 20:46:31 Sessions 1 Manual Loads 0 Difficulty Rogue Special Mode None Game No. 88 Rogue 75 Adventurer 13 Explorer 0 Win Type - Total 1 Types 1/0/0/0/0/0/0/0/0/0 Lore% 41 Gallery% 39 Achievement% 27 Wizard Run 0 Options --------- Layout 1 ASCII 0 Keyboard 0 Movement Mouse Keybinds 0 Fullscreen 1 Font 24/Smallcaps Map View 50x35 Zoom Use 0% Tactical HUD 1 Map Filters NONE Filters NONE Steam 0 RUN: 9f918323-aa4f-490d-a1a0-be0e9ccfacb6